Cogmind - Beta 15 @@@ ROGUE MODE // 2025.07.01 @ 12:41:27 Player: Fangrelle Result: Self-destructed Performance ------------- Evolutions (1) 500 Regions Visited (2) 400 Robots Destroyed (29) 145 Value Destroyed (565) 565 Prototype IDs (6) 120 Alien Tech Used (0) 0 Bonus (0) 0 TOTAL SCORE: 1730 Bonus ------- None Cogmind --------- Core Integrity 400/400 Matter 300/300 Energy 100/100 System Corruption 0% Temperature Cool (0) Movement Treading (480) Ox4 Location -9/Materials Parts ------- > --- POWER (1) -------- (None) > --- PROPULSION (4) --- Light Treads > --- UTILITY (2) ------ Huge Storage Unit Backup Plating I > --- WEAPON (2) ------- EM Pulse Gun Light Assault Rifle > --- INVENTORY (25) --- Light Ion Engine Light Ion Engine Light Treads Wheel Wheel High-capacity Storage Unit Structural Scanner Machine Analyzer Improved Terrain Scanner Improved Terrain Scanner Seismic Detector Light Armor Plating Light Armor Plating Light Armor Plating Light Armor Plating Light Armor Plating Hacking Suite Light Cannon Light Cannon Grenade Launcher Grenade Launcher Mining Laser Peak State ------------ > --- POWER ------------ Ion Engine > --- PROPULSION ------- Light Treads Light Treads > --- UTILITY ---------- Small Storage Unit Seismic Detector > --- WEAPON ----------- EM Pulse Gun Small Laser > --- INVENTORY -------- Light Ion Engine Light Ion Engine Wheel Wheel Improved Terrain Scanner Improved Terrain Scanner Small Laser Mining Laser [Rating: 8] Favorites ----------- Power Ion Engine Engine Ion Engine Propulsion Light Treads Treads Light Treads Leg Aluminum Leg Utility High-capacity Storage Unit Device Seismic Detector Storage High-capacity Storage Unit Protection Backup Plating I Weapon EM Pulse Gun Energy Gun EM Pulse Gun Ballistic Gun Light Assault Rifle Build | -11 -10 -9 ------- Run | Yrd Mat Mat Slots Evolved 2 | . . 2 Power . | . . . Propulsion 2 | . . 2 Utility . | . . . Weapon . | . . . Parts Attached 9 | 3 6 . Power . | . . . Engine . | . . . Core . | . . . Reactor . | . . . Propulsion 3 | 2 1 . Treads 3 | 2 1 . Leg . | . . . Wheel . | . . . Hover . | . . . Flight . | . . . Utility 4 | 1 3 . Device 1 | 1 . . Storage 2 | . 2 . Processor . | . . . Hackware . | . . . Protection 1 | . 1 . Artifact . | . . . Weapon 2 | . 2 . Energy Gun 1 | . 1 . Energy Cannon . | . . . Ballistic Gun 1 | . 1 . Ballistic Cannon . | . . . Launcher . | . . . Special Weapon . | . . . Impact Weapon . | . . . Slashing Weapon . | . . . Piercing Weapon . | . . . Special Melee Weapon . | . . . Unidentified Prototypes . | . . . Parts Lost 4 | . 4 . Power 1 | . 1 . Propulsion 1 | . 1 . Utility 1 | . 1 . Weapon 1 | . 1 . Highest Loss Streak 1 | . 1 . To Critical Strikes . | . . . Average Backups 15 | 6 15 . Power 1 | 1 2 . Propulsion 2 | 3 2 . Utility 7 | . 8 . Weapon 3 | 1 3 . Tool/Special . | . . . Unused Backups 30 | 7 4 19 Power 4 | 1 1 2 Propulsion 4 | 2 . 2 Utility 11 | 1 . 10 Weapon 11 | 3 3 5 Tool/Special . | . . . Average Slot Usage (%) 83 | . 83 . Engine 9 | . 9 . Treads 24 | . 24 . Device 1 | . 1 . Storage 14 | . 14 . Protection 11 | . 11 . Energy Gun 18 | . 18 . Ballistic Gun 2 | . 2 . Peak Build Rating 8 | 8 8 . Average Rating 7 | 6 7 . On Entrance 7 | 6 8 8 Naked Turns . | . . . Heaviest Build 84 | 14 84 . Greatest Support 40 | 40 40 . Greatest Overweight (x) 4 | . 4 . Average Overweight (x) 1 | . 1 . Largest Inventory Capacity 25 | 8 25 . Average Capacity 19 | 8 20 . Most Carried 22 | 8 22 . Average Carried 15 | 6 16 . Final Capacity 25 | 8 25 25 Final Carried 22 | 8 22 22 Class Distribution -------------------- 100% | Mutant Dominant Class ---------------- Mutant | -10/Materials Mutant | -9/Materials Resources | -11 -10 -9 ----------- Run | Yrd Mat Mat Matter Collected 292 | 230 62 . Remotely . | . . . Salvage Created 1020 | 163 857 . Parts 62 | 16 46 . Haulers Intercepted 1 | . 1 . Recyclers Shooed 2 | . 2 . Parts Field Recycled . | . . . Retrieved Matter . | . . . Parts Self-Destructed . | . . . Prevented . | . . . Kills | -11 -10 -9 ------- Run | Yrd Mat Mat Combat Hostiles Destroyed 13 | . 13 . Guns 9 | . 9 . AOE 3 | . 3 . Classes Destroyed 9 | 2 7 . Worker 3 | . 3 . Tunneler 5 | 4 1 . Hauler 1 | . 1 . Recycler 2 | 1 1 . Mechanic 1 | . 1 . Operator 1 | . 1 . Watcher 3 | . 3 . Swarmer 3 | . 3 . Grunt 10 | . 10 . Best Kill Streak 5 | 3 5 . Combat Bots Only 3 | . 3 . Max Kills in Single Turn 1 | 1 1 . Gunslinging . | . . . Exploded 1 | . 1 . Melee . | . . . Uniques/NPCs Destroyed . | . . . Combat | -11 -10 -9 -------- Run | Yrd Mat Mat Hostile Shots Fired 92 | . 92 . Missed 28 | . 28 . Hits 64 | . 64 . Projectile 64 | . 64 . Critical Strikes 1 | . 1 . Damage Taken 886 | 4 882 . Core 170 | 4 166 . Absorbed by Shields . | . . . Core Remaining (%) 65 | 98 32 . Volleys Fired 120 | 11 109 . Largest 2 | 2 2 . Hottest 80 | 80 80 . Shots Fired 189 | 22 167 . Gun 189 | 22 167 . Cannon . | . . . Launcher . | . . . Special . | . . . Kinetic 12 | . 12 . Thermal 51 | 11 40 . Explosive . | . . . Electromagnetic 126 | 11 115 . Robot Hit Streak 18 | 18 9 . Robot Miss Streak 6 | . 6 . Penetration Max . | . . . Secondary Targets 1 | . 1 . Max Gunslinging Chain 1 | . 1 . Shots Hit Robots 112 | 18 94 . Core Hits 44 | 6 38 . Critical Kills . | . . . Critical Parts Destroyed . | . . . Critical Strikes . | . . . Melee Attacks . | . . . Impact . | . . . Slashing . | . . . Piercing . | . . . Sneak Attacks . | . . . Combat Hostiles . | . . . Follow-up Attacks . | . . . Damage Inflicted 1712 | 252 1460 . Guns 1517 | 226 1291 . Cannons . | . . . Explosions 195 | 26 169 . Melee . | . . . Ramming . | . . . Kinetic 35 | . 35 . Thermal 507 | 107 400 . Explosive . | . . . Electromagnetic 1170 | 145 1025 . Impact . | . . . Slashing . | . . . Piercing . | . . . Highest Corruption . | . . . Average Corruption . | . . . Corruption Purged . | . . . Corruption Blocked . | . . . Overload Shots . | . . . Overflow Damage 19 | . 19 . Projectiles . | . . . Explosions 19 | . 19 . Melee . | . . . Knockbacks . | . . . Impact . | . . . Kinetic . | . . . Secondary . | . . . Self-Inflicted Damage 97 | 4 93 . Shots 4 | 1 3 . Rammed . | . . . Targets Rammed . | . . . Kicked . | . . . Crushed . | . . . Highest Temperature 342 | 120 342 . Average Temperature 83 | 57 87 . Received Heat Transfer 426 | . 426 . Effects 1 | . 1 . Interference 1 | . 1 . Siege Activations . | . . . Martial Activations . | . . . Shielding Activations . | . . . Robots Disrupted 1 | . 1 . Combat Hostiles 1 | . 1 . Robots Corrupted 1 | . 1 . Combat Hostiles 1 | . 1 . Parts Fried 8 | 2 6 . Impact Corruptions . | . . . Robots Melted . | . . . Combat Hostiles . | . . . Parts Melted . | . . . Heat Transferred 900 | 225 675 . Parts Sabotaged . | . . . Parts Stolen . | . . . Parts Stripped . | . . . Power Chain Reactions 5 | 1 4 . Alert | -11 -10 -9 ------- Run | Yrd Mat Mat Maximum Alert Level . | . . . Low Security (%) 100 | 100 100 . Level 1 . | . . . Level 2 . | . . . Level 3 . | . . . Level 4 . | . . . Level 5 . | . . . High Security . | . . . Max Security . | . . . Peak Influence 131 | 10 131 . Initial . | . . . Average 37 | 3 38 . Influence Increases 582 | 25 557 . Destroy 0b10 Robot/C 260 | . 260 . Destroy 0b10 Robot/NC 80 | 25 55 . Destroy Leader 58 | . 58 . Successful Hack 70 | . 70 . Select Force Hacks 30 | . 30 . Disable Machine 60 | . 60 . Destroy Structure 9 | . 9 . Lose Combat Pursuer 15 | . 15 . Influence Decreases 582 | 25 556 1 Entered New Map 1 | . . 1 Time Decay 541 | 25 516 . Lost Part 40 | . 40 . Squads Dispatched 2 | . 2 . Investigation 2 | . 2 . Extermination . | . . . Reinforcement . | . . . Assault . | . . . Garrison . | . . . Intercept . | . . . Searches Triggered . | . . . Construction Impeded . | . . . Haulers Reinforced . | . . . Active Scanning Responses . | . . . Cargo Convoy Interrupts . | . . . Stealth | -11 -10 -9 --------- Run | Yrd Mat Mat Distress Signals 1 | . 1 . Communications Jammed . | . . . Distress Signals . | . . . Times Spotted 27 | . 27 . Peak Tracking Total 4 | . 4 . Tactical Retreats 1 | . 1 . Traps | -11 -10 -9 ------- Run | Yrd Mat Mat Traps Triggered 2 | . 2 . Indirectly . | . . . Trap Hack Attempts . | . . . Triggered . | . . . Disarmed . | . . . Reprogrammed . | . . . Reused . | . . . Traps Extracted . | . . . Installed . | . . . Triggered . | . . . Machines | -11 -10 -9 ---------- Run | Yrd Mat Mat Machines Disabled 4 | . 4 . Max in Single Turn 2 | . 2 . Machines Repaired . | . . . Machines Dismantled . | . . . Machines Sabotaged . | . . . Overloaded Fab Kills . | . . . Hacking | -11 -10 -9 --------- Run | Yrd Mat Mat Machines Accessed 10 | . 10 . Terminals 8 | . 8 . Fabricators . | . . . Repair Stations 1 | . 1 . Recycling Units 1 | . 1 . Scanalyzers . | . . . Garrison Access . | . . . Total Hacks 35 | . 35 . Successful 19 | . 19 . Failed 16 | . 16 . Catastrophic . | . . . Database Lockouts . | . . . Manual 33 | . 33 . Terminals 32 | . 32 . Fabricators . | . . . Repair Stations 2 | . 2 . Recycling Units 1 | . 1 . Scanalyzers . | . . . Garrison Access . | . . . Terminal Hacks 4 | . 4 . Prototype ID Bank 4 | . 4 . Fabricator Hacks . | . . . Repair Station Hacks 1 | . 1 . Refit 1 | . 1 . Recycling Unit Hacks . | . . . Scanalyzer . | . . . Garrison Access Hacks . | . . . Unauthorized Hacks 14 | . 14 . Terminals 13 | . 13 . Assimilate 3 | . 3 . Botnet 8 | . 8 . Operators 1 | . 1 . Skim 1 | . 1 . Fabricators . | . . . Repair Stations . | . . . Recycling Units 1 | . 1 . Tunnel 1 | . 1 . Scanalyzers . | . . . Garrison Access . | . . . Data Cores Recovered 1 | . 1 . Used . | . . . Hacking Detections 9 | . 9 . Full Trace Events . | . . . Feedback Events . | . . . Feedback Blocked . | . . . Robot Schematics Acquired . | . . . Robots Built . | . . . Authchips . | . . . Time . | . . . Total Robot Build Rating . | . . . Part Schematics Acquired . | . . . Parts Built . | . . . Authchips . | . . . Time . | . . . Total Part Build Rating . | . . . Parts Repaired . | . . . Time . | . . . Parts Recycled . | . . . Recycled Matter . | . . . Retrieved Matter . | . . . Retrieved Components . | . . . Parts Scanalyzed . | . . . Part Schematics Acquired . | . . . Parts Damaged . | . . . Bothacking | -11 -10 -9 ------------ Run | Yrd Mat Mat Used RIF Installer . | . . . Robots Hacked . | . . . Non-combat . | . . . Combat . | . . . Robot Hacks Applied . | . . . Relay Couplers Released . | . . . Fabnet Peak Effective % . | . . . Robots Rewired . | . . . Allies Hacked . | . . . Hacks Repelled . | . . . Allies | -11 -10 -9 -------- Run | Yrd Mat Mat Total Allies . | . . . Largest Group . | . . . Highest-Rated Group . | . . . Highest-Rated Ally . | . . . Total Orders . | . . . Ally Attacks . | . . . Total Damage . | . . . Kills . | . . . Allies Corrupted . | . . . Allies Melted . | . . . Intel | -11 -10 -9 ------- Run | Yrd Mat Mat Active Infowar (turns) 210 | 10 200 . Seismic 210 | 10 200 . Robot Analysis Total . | . . . Derelict Logs Recovered . | . . . Drone Launches . | . . . Drone Recoveries . | . . . Exploration | -11 -10 -9 ------------- Run | Yrd Mat Mat Turns Passed 2419 | 92 2327 . Spaces Moved 815 | 37 778 . Core . | . . . Treads 792 | 14 778 . Legs 23 | 23 . . Wheels . | . . . Hover . | . . . Flight . | . . . Fastest Speed 120 | 120 160 . Average Speed 253 | 135 259 . Slowest Speed 480 | 160 480 . Overloaded Moves . | . . . Propulsion Burnouts . | . . . Robots Hopped . | . . . Potential Cave-ins . | . . . Cave-ins Triggered . | . . . Exploration Rate (%) 33 | 3 95 1 Regions Visited 2 Branch Regions . Pre-discovered Areas 1 | . 1 . Known Exits Taken . | . . . Unknown Exits Taken 2 | 1 1 . Scrap Searched . | . . . Spaces Dug . | . . . Terrain Destroyed 9 | 2 7 . Melee . | . . . Projectile . | . . . AOE 9 | 2 7 . Terrain Rammed . | . . . Walls Destroyed . | . . . Machines Disabled . | . . . Actions | -11 -10 -9 --------- Run | Yrd Mat Mat Total 983 | 58 925 . Wait 15 | . 15 . Move 813 | 36 777 . Hop . | . . . Pick Up 19 | 5 14 . Fast Attach 3 | 1 2 . Attach 2 | 2 . . Detach 1 | . 1 . Swap 4 | . 4 . Drop 6 | 3 3 . Fire 120 | 11 109 . Melee . | . . . Ram . | . . . Kick . | . . . Crush . | . . . Escape Stasis . | . . . Rewire . | . . . Trap . | . . . Miscellaneous . | . . . Route ------- -11/Scrapyard -10/Materials (discovered 3 exits: [*Mat x3]) -9/Materials History --------- Turn | Location | Event 1 | -11/Scrapyard | Discovered new exit (range 3) 93 | -11/Scrapyard | Entered Materials 289 | -10/Materials | Discovered new exit (range 14) 322 | -10/Materials | Build established: Mutant 804 | -10/Materials | Discovered new exit (range 15) 832 | -10/Materials | Core integrity fell below 50% 1527 | -10/Materials | Discovered new exit (range 14) 2420 | -10/Materials | Entered another Materials area 2420 | -9/Materials | Evolved 2 slots: Propulsion x2 2420 | -9/Materials | Self-destructed Last Messages --------------- 01866_ Triggered Alarm Trap. 01866_ An alarm sounds. 01866_ ALERT: Alarm triggered, dispatching investigation squad. 01883_ Acquired Lgt. Armor Plating. 01887_ Acquired Grenade Launcher. 01898_ Acquired Structural Scanner. 01915_ Lgt. Treads destroyed. 01927_ G-34 Mercenary misfires. 01927_ Heat Sink fried. 01927_ G-34 Mercenary destroyed. 01935_ R-06 Scavenger collects Corrupted Aluminum Leg. 01948_ Acquired Lgt. Assault Rifle. 01969_ Destroyed Heat Sink. 01972_ G-34 Mercenary misfires. 01978_ G-34 Mercenary destroyed. 01983_ Acquired 27 matter. 01995_ R-06 Scavenger collects Ion Engine. PARAMETERS=PROPULSION+2 LOCATION=UNKNOWN GOAL=ESCAPE Map ----- +----------------------------------------------------+ | ?????????????????????????????????????? | | ?????????????????????????????????????? | | ?????????????????????????????????????? | | ?????????????????????????????????????? | | ?????????????????????????????????????? | | ?????????????????????????????????????? | | ?????????????????????????????????????? | | ?????????????????????????????????????? | | ?????????????????????????????????????? | | ?????????????????????????????????????? | | ???????????? ??????????????????????? | | ???????????? ##????????????????????? | | ???????????? ????????????????????? | | ???????????# ?????????????????????? | | ???????????# ?????????????????????? | | ???????????# ?????????????????????? | | ???????????+ ?????????????????????? | | ???????????# ?????????????????????? | | ???????????# #?????????????????????? | | ???????????# #?????????????????????? | | ???????????# #?????????????????????? | | ???????????# #?????????????????????? | | ???????????# #?????????????????????? | | ???????????+ +?????????????????????? | | ???????????# #?????????????????????? | | ???????????# @ #?????????????????????? | | ???????????# #?????????????????????? | | ???????????#####?????????????????????? | | ?????????????????????????????????????? | | ?????????????????????????????????????? | | ?????????????????????????????????????? | | ?????????????????????????????????????? | | ?????????????????????????????????????? | | ?????????????????????????????????????? | | ?????????????????????????????????????? | | ?????????????????????????????????????? | | ?????????????????????????????????????? | | ?????????????????????????????????????? | | ?????????????????????????????????????? | | ?????????????????????????????????????? | | ?????????????????????????????????????? | | ?????????????????????????????????????? | | ?????????????????????????????????????? | | ?????????????????????????????????????? | | | | | | | | | | | | | +----------------------------------------------------+ Best States ------------- Heat Dissipation 25 Energy Generation 10 Energy Capacity 250 Matter Stores 300 Matter Capacity 300 Sight Range 16 Terrain Scan Density 10 Armor Coverage 150 Evasion (%) 55 Recoil Reduction 2 Item Schematics ----------------- None Robot Schematics ------------------ None Fabricated ------------ Nothing Repaired ---------- Nothing Alien Tech Used ----------------- None Achievements -------------- None Challenges ------------ None Game ------ Seed IonicKineticBoomstick Manual? 0 Play Time 00:10:13 Cumulative 159.2 hours Start 2025.07.01 @ 12:29:33 End 2025.07.01 @ 12:41:27 Sessions 1 Manual Loads 0 Difficulty Rogue Special Mode None Game No. 308 Rogue 308 Adventurer 0 Explorer 0 Win Type - Total 0 Types 0/0/0/0/0/0/0/0/0/0 Lore% 44 Gallery% 39 Achievement% 36 Wizard Run 0 Options --------- Layout 0 ASCII 0 Keyboard 0 Movement Mouse Keybinds 0 Fullscreen 1 Font 24/Smallcaps Map View 91x25 Zoom Use 100% Tactical HUD 1 Map Filters NONE Filters NONE Steam 1 RUN: f337b554-6da9-4661-9a38-344c57c74e69